Cogmind - Beta 13 @@@ ROGUE MODE // 2024.05.06 @ 19:17:56 Player: Matters Result: Destroyed by Y-45 Defender with Heavy Assault Rifle Performance ------------- Evolutions (0) 0 Regions Visited (2) 400 Robots Destroyed (18) 90 Value Destroyed (489) 489 Prototype IDs (0) 0 Alien Tech Used (0) 0 Bonus (0) 0 TOTAL SCORE: 979 Bonus ------- None Cogmind --------- Core Integrity 0/250 Matter 266/300 Energy 124/125 System Corruption 4% Temperature Cool (2) Movement Hovering (236) Ox3 Location -10/Mines Parts ------- > --- POWER (1) -------- Light Ion Engine > --- PROPULSION (2) --- Hover Unit Hover Unit > --- UTILITY (2) ------ High-capacity Storage Unit Sensor Array > --- WEAPON (2) ------- Small Laser Light Assault Rifle > --- INVENTORY (20) --- Ion Engine Aluminum Leg Hover Unit Hover Unit Heat Sink High-capacity Storage Unit Small Battery (100) Medium Matter Pod (100) Structural Scanner Sensor Array Signal Interpreter Terrain Scanner Seismic Detector Propulsion Shielding Propulsion Shielding Propulsion Shielding Light Armor Plating Light Assault Rifle Mining Laser Peak State ------------ > --- POWER ------------ Light Nuclear Core > --- PROPULSION ------- Aluminum Leg Aluminum Leg > --- UTILITY ---------- Improved Heat Sink Structural Scanner > --- WEAPON ----------- Small Laser Assault Rifle > --- INVENTORY -------- Heat Sink Medium Matter Pod Small Laser [Rating: 11] Favorites ----------- Power Light Ion Engine Engine Light Ion Engine Power Core Light Nuclear Core Propulsion Aluminum Leg Leg Aluminum Leg Wheel Wheel Hover Unit Hover Unit Utility High-capacity Storage Unit Device Structural Scanner Storage High-capacity Storage Unit Weapon Small Laser Energy Gun Small Laser Ballistic Gun Assault Rifle Special Weapon Mining Laser Build | -11 -10 -10 ------- Run | Yrd Mat Min Slots Evolved . | . . . Power . | . . . Propulsion . | . . . Utility . | . . . Weapon . | . . . Parts Attached 28 | 4 17 7 Power 3 | . 3 . Engine 2 | . 2 . Core 1 | . 1 . Reactor . | . . . Propulsion 7 | 2 3 2 Treads . | . . . Leg 2 | . 2 . Wheel 3 | 2 1 . Hover 2 | . . 2 Flight . | . . . Utility 6 | . 5 1 Device 5 | . 4 1 Storage 1 | . 1 . Processor . | . . . Hackware . | . . . Protection . | . . . Artifact . | . . . Weapon 12 | 2 6 4 Energy Gun 6 | . 4 2 Energy Cannon . | . . . Ballistic Gun 5 | 2 2 1 Ballistic Cannon . | . . . Launcher . | . . . Special Weapon 1 | . . 1 Impact Weapon . | . . . Slashing Weapon . | . . . Piercing Weapon . | . . . Special Melee Weapon . | . . . Unidentified Prototypes . | . . . Parts Lost 11 | . 8 3 Power 2 | . 2 . Propulsion 4 | . 3 1 Utility 1 | . 1 . Weapon 4 | . 2 2 Highest Loss Streak 4 | . 4 2 To Critical Strikes . | . . . Average Slot Usage (%) 91 | . 87 97 Engine 10 | . 8 14 Leg 14 | . 20 4 Wheel 4 | . 6 . Hover 9 | . . 23 Device 13 | . 13 14 Storage 10 | . 9 14 Energy Gun 13 | . 12 13 Ballistic Gun 13 | . 14 11 Naked Turns . | . . . Heaviest Build 47 | 3 47 47 Greatest Support 20 | 20 20 20 Greatest Overweight (x) 3 | . 2 3 Average Overweight (x) 1 | . . 2 Largest Inventory Capacity 20 | 5 20 20 Average Capacity 16 | 5 14 20 Most Carried 19 | 4 16 19 Average Carried 11 | 2 8 16 Final Capacity 20 | 5 20 20 Final Carried 19 | 3 16 19 Class Distribution -------------------- 96% | Mutant 3% | Scavenger-Mutant Dominant Class ---------------- Mutant | -10/Materials Mutant | -10/Mines Resources | -11 -10 -10 ----------- Run | Yrd Mat Min Matter Collected 655 | 252 307 96 Remotely . | . . . Salvage Created 557 | 42 425 90 Parts 41 | 1 30 10 Haulers Intercepted . | . . . Recyclers Shooed . | . . . Parts Field Recycled . | . . . Retrieved Matter . | . . . Parts Self-Destructed . | . . . Prevented . | . . . Kills | -11 -10 -10 ------- Run | Yrd Mat Min Combat Hostiles Destroyed 17 | 1 10 6 Guns 17 | 1 10 6 Classes Destroyed 3 | 1 1 1 Watcher 1 | . 1 . Swarmer 6 | . . 6 Grunt 11 | 1 10 . Best Kill Streak 3 | 1 3 3 Combat Bots Only 3 | 1 3 3 Max Kills in Single Turn 1 | 1 1 1 Gunslinging . | . . . Exploded . | . . . Melee . | . . . Uniques/NPCs Destroyed . | . . . Combat | -11 -10 -10 -------- Run | Yrd Mat Min Hostile Shots Fired 128 | 4 80 44 Missed 31 | . 19 12 Damage Taken 1058 | 45 753 260 Core 259 | 10 179 70 Absorbed by Shields . | . . . Core Remaining (%) 96 | 96 . . Volleys Fired 64 | 3 48 13 Largest 2 | 2 2 1 Hottest 100 | 40 80 100 Shots Fired 117 | 6 96 15 Gun 116 | 6 96 14 Cannon . | . . . Launcher . | . . . Special 1 | . . 1 Kinetic 48 | 6 41 1 Thermal 69 | . 55 14 Explosive . | . . . Electromagnetic . | . . . Robot Hit Streak 9 | 6 7 9 Robot Miss Streak 4 | . 4 1 Penetration Max . | . . . Secondary Targets 1 | . 1 . Max Gunslinging Chain 1 | . 1 . Shots Hit Robots 79 | 6 63 10 Core Hits 33 | 2 25 6 Critical Kills . | . . . Critical Parts Destroyed . | . . . Critical Strikes . | . . . Melee Attacks . | . . . Impact . | . . . Slashing . | . . . Piercing . | . . . Sneak Attacks . | . . . Combat Hostiles . | . . . Follow-up Attacks . | . . . Damage Inflicted 925 | 65 745 115 Guns 925 | 65 745 115 Cannons . | . . . Explosions . | . . . Melee . | . . . Ramming . | . . . Kinetic 420 | 65 355 . Thermal 505 | . 390 115 Explosive . | . . . Electromagnetic . | . . . Impact . | . . . Slashing . | . . . Piercing . | . . . Highest Corruption 4 | . 4 4 Average Corruption 3 | . 3 4 Corruption Purged . | . . . Corruption Blocked . | . . . Effects 36 | . 14 22 Message Errors 10 | . 4 6 Matter Fused 7 | . 1 6 Heat Flow Errors 5 | . 3 2 Energy Discharges 5 | . 3 2 Data Loss (minor) 3 | . . 3 Data Loss (major) 2 | . 1 1 Misfires 3 | . 1 2 Alerts 1 | . 1 . Overload Shots . | . . . Overflow Damage . | . . . Projectiles . | . . . Explosions . | . . . Melee . | . . . Knockbacks . | . . . Impact . | . . . Kinetic . | . . . Secondary . | . . . Self-Inflicted Damage . | . . . Shots . | . . . Rammed . | . . . Targets Rammed . | . . . Kicked . | . . . Crushed . | . . . Highest Temperature 164 | 1 164 128 Average Temperature 33 | 1 37 29 Received Heat Transfer 480 | 24 456 . Siege Activations . | . . . Robots Corrupted . | . . . Combat Hostiles . | . . . Parts Fried . | . . . Impact Corruptions . | . . . Robots Melted . | . . . Combat Hostiles . | . . . Parts Melted 2 | . 1 1 Heat Transferred 1150 | . 900 250 Parts Sabotaged . | . . . Parts Stolen . | . . . Parts Stripped . | . . . Power Chain Reactions . | . . . Alert | -11 -10 -10 ------- Run | Yrd Mat Min Peak Influence 129 | 20 125 129 Initial 19 | . 13 19 Average 32 | 2 43 17 Maximum Alert Level . | . . . Low Security (%) 100 | 100 100 100 Level 1 . | . . . Level 2 . | . . . Level 3 . | . . . Level 4 . | . . . Level 5 . | . . . High Security . | . . . Max Security . | . . . Squads Dispatched 3 | . 3 . Investigation 2 | . 2 . Extermination . | . . . Reinforcement 1 | . 1 . Assault . | . . . Garrison . | . . . Intercept . | . . . Searches Triggered . | . . . Construction Impeded . | . . . Haulers Reinforced . | . . . Active Scanning Responses . | . . . Cargo Convoy Interrupts . | . . . Stealth | -11 -10 -10 --------- Run | Yrd Mat Min Distress Signals 1 | . 1 . Communications Jammed . | . . . Distress Signals . | . . . Times Spotted 27 | 1 19 7 Peak Tracking Total 4 | 1 4 3 Tactical Retreats . | . . . Traps | -11 -10 -10 ------- Run | Yrd Mat Min Traps Triggered 4 | . 4 . Indirectly . | . . . Trap Hack Attempts . | . . . Triggered . | . . . Disarmed . | . . . Reprogrammed . | . . . Reused . | . . . Traps Extracted . | . . . Installed . | . . . Triggered . | . . . Machines | -11 -10 -10 ---------- Run | Yrd Mat Min Machines Disabled . | . . . Max in Single Turn . | . . . Machines Repaired . | . . . Machines Dismantled . | . . . Machines Sabotaged . | . . . Overloaded Fab Kills . | . . . Hacking | -11 -10 -10 --------- Run | Yrd Mat Min Machines Accessed 4 | . 4 . Terminals 2 | . 2 . Fabricators . | . . . Repair Stations . | . . . Recycling Units 2 | . 2 . Scanalyzers . | . . . Garrison Access . | . . . Total Hacks 15 | . 15 . Successful 10 | . 10 . Failed 5 | . 5 . Catastrophic . | . . . Database Lockouts . | . . . Manual . | . . . Terminals 8 | . 8 . Fabricators . | . . . Repair Stations . | . . . Recycling Units 7 | . 7 . Scanalyzers . | . . . Garrison Access . | . . . Terminal Hacks 5 | . 5 . Record 1 | . 1 . Emergency Access Points 1 | . 1 . Locate Traps 1 | . 1 . Dispatch Records 1 | . 1 . Transport Status 1 | . 1 . Fabricator Hacks . | . . . Repair Station Hacks . | . . . Recycling Unit Hacks 5 | . 5 . Process 1 | . 1 . Report Inventory 3 | . 3 . Retrieve Matter 1 | . 1 . Scanalyzer . | . . . Garrison Access Hacks . | . . . Unauthorized Hacks . | . . . Terminals . | . . . Fabricators . | . . . Repair Stations . | . . . Recycling Units . | . . . Scanalyzers . | . . . Garrison Access . | . . . Data Cores Recovered . | . . . Used . | . . . Hacking Detections 4 | . 4 . Full Trace Events 3 | . 3 . Feedback Events . | . . . Feedback Blocked . | . . . Robot Schematics Acquired . | . . . Robots Built . | . . . Authchips . | . . . Time . | . . . Total Robot Build Rating . | . . . Part Schematics Acquired . | . . . Parts Built . | . . . Authchips . | . . . Time . | . . . Total Part Build Rating . | . . . Parts Repaired . | . . . Time . | . . . Parts Recycled . | . . . Recycled Matter 10 | . 10 . Retrieved Matter 10 | . 10 . Retrieved Components . | . . . Parts Scanalyzed . | . . . Part Schematics Acquired . | . . . Parts Damaged . | . . . Bothacking | -11 -10 -10 ------------ Run | Yrd Mat Min Used RIF Installer . | . . . Robots Hacked . | . . . Non-combat . | . . . Combat . | . . . Robot Hacks Applied . | . . . Relay Couplers Released . | . . . Fabnet Peak Effective % . | . . . Robots Rewired . | . . . Allies Hacked . | . . . Hacks Repelled . | . . . Allies | -11 -10 -10 -------- Run | Yrd Mat Min Total Allies 4 | . . 4 Largest Group 4 | . . 4 Highest-Rated Group 71 | . . 71 Highest-Rated Ally 31 | . . 31 Total Orders . | . . . Ally Attacks . | . . . Total Damage . | . . . Kills . | . . . Allies Corrupted . | . . . Allies Melted . | . . . Intel | -11 -10 -10 ------- Run | Yrd Mat Min Robot Analysis Total . | . . . Derelict Logs Recovered 1 | . . 1 Drone Launches . | . . . Drone Recoveries . | . . . Exploration | -11 -10 -10 ------------- Run | Yrd Mat Min Turns Passed 3269 | 70 1964 1235 Spaces Moved 1629 | 71 1060 498 Core 29 | 19 10 . Treads . | . . . Legs 654 | . 581 73 Wheels 521 | 52 469 . Hover 425 | . . 425 Flight . | . . . Fastest Speed 50 | 50 80 236 Average Speed 183 | 71 164 239 Slowest Speed 260 | 80 260 260 Overloaded Moves . | . . . Propulsion Burnouts . | . . . Robots Hopped . | . . . Cave-ins Triggered . | . . . Exploration Rate (%) 61 | 7 80 97 Regions Visited 2 Branch Regions 1 Pre-discovered Areas . | . . . Known Exits Taken . | . . . Unknown Exits Taken 2 | 1 1 . Scrap Searched 1 | . . 1 Spaces Dug 1 | . . 1 Terrain Destroyed 1 | . . 1 Melee . | . . . Projectile 1 | . . 1 AOE . | . . . Terrain Rammed . | . . . Walls Destroyed . | . . . Machines Disabled . | . . . Actions | -11 -10 -10 --------- Run | Yrd Mat Min Total 1800 | 84 1191 525 Wait 39 | . 38 1 Move 1627 | 70 1059 498 Hop . | . . . Pick Up 41 | 7 28 6 Fast Attach . | . . . Attach 23 | 4 16 3 Detach 1 | . 1 . Swap 5 | . 1 4 Drop . | . . . Fire 64 | 3 48 13 Melee . | . . . Ram . | . . . Kick . | . . . Crush . | . . . Escape Stasis . | . . . Rewire . | . . . Trap . | . . . Miscellaneous . | . . . Route ------- -11/Scrapyard -10/Materials (discovered 5 exits: [*Mat x3] / [*Min] / [*Sub]) -10/Mines (discovered 2 exits: [*Mat x2]) History --------- Turn | Location | Event 2 | -11/Scrapyard | Met Revision 17 49 | -11/Scrapyard | Discovered new exit (range 8) 71 | -11/Scrapyard | Entered Materials 322 | -10/Materials | Build established: Mutant 520 | -10/Materials | Discovered new exit (range 10) 577 | -10/Materials | Core integrity fell below 50% 605 | -10/Materials | Lost 4 parts (1p2n1w) 1055 | -10/Materials | Discovered new exit (range 16) 1237 | -10/Materials | Discovered new exit (range 4) 1705 | -10/Materials | Discovered new exit (range 9) 1788 | -10/Materials | Discovered new exit (range 3) 2035 | -10/Materials | Entered Mines 2145 | -10/Mines | Discovered new exit (range 15) 2223 | -10/Mines | Core integrity fell below 20% 2873 | -10/Mines | Learned Materials stockpile data 2917 | -10/Mines | Assisted by bots powering up and referring to "LRC-V3" 3008 | -10/Mines | Received a Mining Laser from a helpful Derelict 3166 | -10/Mines | Discovered new exit (range 6) 3270 | -10/Mines | Joined a pair of Derelicts in attacking an 0b10 outpost 3270 | -10/Mines | Destroyed by Y-45 Defender with Heavy Assault Rifle Last Messages --------------- Move into an ally to swap places with them. 03006_ A derelict emerges from the shadows: "What are you doing alone down here?" 03008_ 6N-3TS(g): "And why aren't you carrying a mining laser?! Certainly you don't want THEM to uncover you when the ceiling comes crashing down? Here, take my spare." 03011_ 6N-3TS(g): "You're apparently new around these parts, I'll cover you." 03013_ System corrupted: Matter fused (-9). 03014_ Acquired Mining Laser. 03020_ 6N-3TS(g): "Mining lasers are a lot more useful than you might think..." 03047_ System corrupted: Component data lost. 03113_ System corrupted: Heat flow error (+146). 03154_ System corrupted: Matter fused (-5). 03166_ EXIT=FOUND 03226_ System corrupted: Energy discharge (-48). 03270_ A derelict emerges from the shadows: "We've had our eye on this brand new outpost for a little while, just waiting for an opportunity to strike. Need some help?" Map ----- +----------------------------------------------------+ | | | | | | | | | | | | | | | | | | | | | | | | | | | | | | | | | | | | | ?????????????????????????????????????????????????? | | ??????????????????????????#######################? | | ???????????????###??###?### #? | | ??????????????## ####"Y## #? | | ?????????????## ##"" # #? | | ?????????##### #??! /g g #? | | ????????## ##???? /g gg #? | | ???????## ##??????#@g #? | | ???????# ##??????# #? | | ???????# ##?????### #? | | ???????# ##??????# #? | | ???????# ##?????# #? | | #####??## ## #?????################### ###? | | #####???##### ##??????????????????????# #??? | | ##???????# #??????????????????????# #??? | | "" ##???????## #??????????????????????# #??? | | "" ##????????## #??????????????????????# #??? | | "" ##?????????# ##??????????????????????# #??? | | ##???###???# ##???????????????????????# #??? | | ##??## ###?# ##???????????????????????# #??? | | ##??# ###### #???????????????????????# #??? | | #####??## ##### #???????????????###?????# #??? | | #####???## ### ##?????????####### ####### #??? | | ##???????# ##??????????# #??? | | ##??????## ###??????????# #### < ######??? | | ########## ###???????????# #??## #???????? | | ######### ##????????????# #???# #???????? | | #### ###????????????# ###### ##???????? | | ## ####?????????????# #####????????? | | ###???????????????##### #????????????? | | ##????????????????????# #????????????? | | ## ##????????????????????# ##???????????? | +----------------------------------------------------+ Best States ------------- Heat Dissipation 49 Energy Generation 14 Energy Capacity 160 Matter Stores 300 Matter Capacity 300 Sight Range 16 Robot Scan Range 14 Terrain Scan Density 10 Evasion (%) 55 Item Schematics ----------------- None Robot Schematics ------------------ None Fabricated ------------ Nothing Alien Tech Used ----------------- None Achievements -------------- None Challenges ------------ None Game ------ Seed MicroEtherialFilter Manual? 0 Play Time 00:22:48 Cumulative 2.7 hours Start 2024.05.06 @ 18:56:08 End 2024.05.06 @ 19:17:56 Sessions 1 Manual Loads 0 Difficulty Rogue Special Mode None Game No. 3 Rogue 3 Adventurer 0 Explorer 0 Win Type - Total 0 Types 0/0/0/0/0/0/0/0/0 Lore% 2 Gallery% 8 Achievement% 8 Wizard Run 0 Options --------- Layout 0 ASCII 0 Keyboard 0 Movement Numpad Keybinds 0 Fullscreen 1 Font 18/SmallcapsGlow Map View 38x25 Zoom Use 98% Tactical HUD 1 Map Filters NONE Filters NONE Steam 1 RUN: 6f9ce406-7d89-4b6e-a57d-abb2edddf242